lending/lending_fUSD_20250706
["ID","MTS","AMOUNT","RATE_DAILY","PERIOD"]
[369908624,1751773849509,-315.794955,0.00018899,2]
[369908626,1751773849519,-315.794955,0.00018899,2]
[369908628,1751773849528,-151.0,0.00018899,2]
[369908630,1751773849538,-151.0,0.00018899,2]
[369908632,1751773849547,-151.0,0.00018899,2]
[369908634,1751773849557,-2003.73,0.000189,2]
[369908636,1751773849567,-1479.85,0.000189,2]
[369908638,1751773849576,-364.285573,0.000189,2]
[369908640,1751773849585,-364.285573,0.000189,2]
[369908642,1751773849594,-1266.12,0.000189,2]
[369908644,1751773849604,-1157.76,0.000189,2]
[369908646,1751773849613,-844.07,0.000189,2]
[369908654,1751773849680,-6400.0,0.000189,6]
[369908656,1751773849689,-151.0,0.000189,2]
[369908657,1751773849699,-151.0,0.000189,2]
[369908659,1751773849708,-218.71,0.000189,2]
[369908661,1751773849717,-644.22324442,0.00018932,2]
[369908663,1751773849726,-5848.26922924,0.00018936,2]
[369908665,1751773849737,-151.0,0.00018936,2]
[369908667,1751773849746,-448.246695,0.00018936,2]
[369908669,1751773849755,-151.0,0.00018936,2]
[369908671,1751773849765,-151.0,0.00018936,2]
[369908673,1751773849774,-151.0,0.00018936,2]
[369908675,1751773849784,-159.808798,0.00018936,2]
[369908677,1751773849793,-159.808798,0.00018936,2]
[369908679,1751773849803,-151.0,0.00018936,2]
[369908681,1751773849811,-151.0,0.00018936,2]
[369908683,1751773849821,-151.0,0.00018936,2]
[369908685,1751773849831,-264.056195,0.00018936,2]
[369908687,1751773849842,-264.056195,0.00018936,2]
[369908689,1751773849856,-151.0,0.00018936,2]
[369908691,1751773849866,-151.0,0.00018936,2]
[369908693,1751773849875,-151.0,0.00018936,2]
[369908695,1751773849884,-151.0,0.00018936,2]
[369908697,1751773849893,-1254.987034,0.00018936,2]
[369908699,1751773849902,-1254.987034,0.00018936,2]
[369908701,1751773849912,-267.184285,0.00018936,2]
[369908703,1751773849921,-267.184285,0.00018936,2]
[369908705,1751773849930,-151.0,0.00018936,2]
[369908707,1751773849940,-151.0,0.00018936,2]
[369908709,1751773849949,-151.0,0.00018936,2]
[369908711,1751773849958,-151.0,0.00018936,2]
[369908713,1751773849968,-171.362756,0.00018936,2]
[369908715,1751773849977,-603.761966,0.00018936,2]
[369908716,1751773849986,-603.761966,0.00018936,2]
[369908718,1751773849995,-299.54537,0.00018936,2]
[369908720,1751773850005,-299.54537,0.00018936,2]
[369908722,1751773850015,-2993.807852,0.00018959,2]
[369908724,1751773850025,-151.0,0.00018959,2]
[369908726,1751773850035,-365.792703,0.00018959,2]
[369908728,1751773850045,-237.174568,0.00018959,2]
[369908730,1751773850055,-237.174568,0.00018959,2]
[369908732,1751773850064,-524.153661,0.00018959,2]
[369908734,1751773850074,-524.153661,0.00018959,2]
[369908736,1751773850083,-151.0,0.00018959,2]
[369908738,1751773850092,-223.401224,0.00018959,2]
[369908740,1751773850101,-899.410286,0.00018959,2]
[369908742,1751773850110,-151.0,0.00018959,2]
[369908744,1751773850119,-899.410286,0.00018959,2]
[369908746,1751773850128,-199.678059,0.00018959,2]
[369908748,1751773850137,-199.678059,0.00018959,2]
[369908750,1751773850146,-151.0,0.00018959,2]
[369908752,1751773850155,-151.0,0.00018959,2]
[369908753,1751773850165,-237.93452,0.00018959,2]
[369908755,1751773850174,-237.93452,0.00018959,2]
[369908757,1751773850183,-151.0,0.00018959,2]
[369908759,1751773850193,-151.0,0.00018959,2]
[369908761,1751773850202,-151.0,0.00018959,2]
[369908763,1751773850212,-151.0,0.00018959,2]
[369908765,1751773850221,-605.107466,0.00018959,2]
[369908767,1751773850230,-605.107466,0.00018959,2]
[369908769,1751773850239,-275.175374,0.00018959,2]
[369908771,1751773850248,-275.175374,0.00018959,2]
[369908773,1751773850258,-321.306437,0.00018959,2]
[369908775,1751773850266,-321.306437,0.00018959,2]
[369908777,1751773850275,-166.265388,0.00018959,2]
[369908779,1751773850285,-166.265388,0.00018959,2]
[369908781,1751773850294,-151.0,0.00018967,2]
[369908783,1751773850304,-151.0,0.00018967,2]
[369908785,1751773850313,-156.97187,0.00018967,2]
[369908787,1751773850322,-159.808798,0.00018967,2]
[369908789,1751773850331,-159.808799,0.00018967,2]
[369908791,1751773850340,-151.0,0.00018967,2]
[369908793,1751773850349,-151.0,0.00018967,2]
[369908795,1751773850359,-264.056195,0.00018967,2]
[369908796,1751773850368,-264.056187,0.00018967,2]
[369908799,1751773850378,-151.0,0.00018967,2]
[369908801,1751773850387,-151.0,0.00018967,2]
[369908802,1751773850397,-266.70567587,0.00018967,2]
[369908804,1751773850406,-1254.987034,0.00018967,2]
[369908806,1751773850415,-1254.987044,0.00018967,2]
[369908808,1751773850426,-267.184285,0.00018967,2]
[369908810,1751773850439,-267.184287,0.00018967,2]
[369908812,1751773850449,-151.0,0.00018967,2]
[369908814,1751773850459,-481.503548,0.00018967,2]
[369908816,1751773850468,-481.503548,0.00018967,2]
[369908818,1751773850478,-151.0,0.00018968,2]
[369908820,1751773850487,-151.0,0.00018968,2]
[369908822,1751773850496,-151.0,0.00018972,2]
[369908824,1751773850505,-958.0,0.0001898,2]
[369908826,1751773850515,-587.0,0.0001898,2]
[369908828,1751773850524,-666.0,0.0001898,2]
[369908830,1751773850533,-205.55089571,0.0001898,2]
[369908832,1751773850542,-282.103159,0.0001898,2]
[369908834,1751773850552,-151.0,0.0001898,2]
[369908836,1751773850561,-243.28963931,0.0001898,2]
[369908838,1751773850571,-300.0,0.00018984,2]
[369908840,1751773850581,-500.0,0.00018985,2]
[369908841,1751773850590,-185.69214143,0.00018985,2]
[369908842,1751773850599,-500.0,0.00018985,2]
[369908843,1751773850609,-150.0,0.00018985,2]
[369908844,1751773850618,-16117.819589,0.00018985,2]
[369908845,1751773850627,-139085.4241533,0.00018985,2]
[369908846,1751773850637,-300.0,0.00018986,2]
[369908847,1751773850647,-300.0,0.00018986,2]
[369908848,1751773850656,-666.0,0.00018986,2]
[369908849,1751773850666,-5118.6259172,0.00018986,2]
[369908850,1751773850676,-37382.5721154,0.00018986,2]
[369908851,1751773850685,-244.305117,0.00018986,2]
[369908852,1751773850695,-218.71,0.00018987,2]
[369908853,1751773850705,-151.0,0.00018987,2]
[369908854,1751773850714,-899.410286,0.00018987,2]
[369908855,1751773850723,-151.0,0.00018987,2]
[369908857,1751773850733,-899.410286,0.00018987,2]
[369908859,1751773850743,-178.427062,0.00018987,2]
[369908861,1751773850752,-199.678059,0.00018987,2]
[369908863,1751773850762,-199.678059,0.00018987,2]
[369908865,1751773850771,-151.0,0.00018987,2]
[369908867,1751773850781,-151.0,0.00018987,2]
[369908869,1751773850790,-237.93452,0.00018987,2]
[369908871,1751773850800,-237.93452,0.00018987,2]
[369908873,1751773850810,-151.0,0.00018987,2]
[369908875,1751773850821,-151.0,0.00018987,2]
[369908877,1751773850830,-151.0,0.00018987,2]
[369908879,1751773850840,-151.0,0.00018987,2]
[369908881,1751773850849,-151.0,0.00018987,2]
[369908883,1751773850858,-151.0,0.00018987,2]
[369908885,1751773850868,-151.0,0.00018987,2]
[369908887,1751773850878,-151.0,0.00018987,2]
[369908889,1751773850888,-156.008922,0.00018987,2]
[369908891,1751773850897,-151.0,0.00018987,2]
[369908893,1751773850906,-605.107466,0.00018987,2]
[369908895,1751773850916,-605.107466,0.00018987,2]
[369908897,1751773850925,-151.0,0.00018987,2]
[369908899,1751773850935,-151.0,0.00018987,2]
[369908901,1751773850944,-151.0,0.00018987,2]
[369908902,1751773850953,-14664.5791518,0.00018987,2]
[369908905,1751773850963,-481.503548,0.00018987,2]
[369908906,1751773850972,-151.0,0.00018987,2]
[369908908,1751773850982,-481.503548,0.00018987,2]
[369908911,1751773850992,-151.0,0.00018987,2]
[369908912,1751773851001,-151.0,0.00018987,2]
[369908915,1751773851011,-151.0,0.00018987,2]
[369908917,1751773851020,-151.0,0.00018987,2]
[369908918,1751773851030,-151.0,0.00018987,2]
[369908920,1751773851039,-151.0,0.00018987,2]
[369908922,1751773851049,-153.571652,0.00018987,2]
[369908924,1751773851058,-275.175374,0.00018987,2]
[369908927,1751773851068,-275.175374,0.00018987,2]
[369908929,1751773851079,-321.306437,0.00018987,2]
[369908931,1751773851089,-321.306437,0.00018987,2]
[369908933,1751773851098,-603.761966,0.00018987,2]
[369908934,1751773851107,-603.761966,0.00018987,2]
[369908936,1751773851117,-13109.6551035,0.00018987,2]
[369908938,1751773851126,-299.54537,0.00018987,2]
[369908940,1751773851136,-299.54537,0.00018987,2]
[369908942,1751773851146,-166.265388,0.00018987,2]
[369908944,1751773851156,-166.265388,0.00018987,2]
[369908947,1751773851166,-166.265388,0.00018987,2]
[369908949,1751773851176,-166.265388,0.00018987,2]
[369908951,1751773851185,-113127.0846224,0.00018987,2]
[369908953,1751773851199,-151.0,0.00018987,2]
[369908955,1751773851209,-1168.65101317,0.00018989,5]
[369908957,1751773851220,-300.0,0.00018989,2]
[369908959,1751773851229,-300.0,0.00018989,2]
[369908961,1751773851239,-666.0,0.00018989,2]
[369908963,1751773851248,-970202.99605382,0.0001899,2]
[369908965,1751773851258,-7993.65814752,0.0001899,2]
[369908967,1751773851271,-203801.70735761,0.0001899,2]
[369908969,1751773851280,-1115.10387134,0.0001899,2]
[369908970,1751773851290,-151.0,0.0001899,2]
[369908973,1751773851299,-151.0,0.0001899,2]
[369908975,1751773851309,-151.0,0.0001899,2]
[369908977,1751773851319,-251.676042,0.0001899,2]
[369908979,1751773851329,-181.800458,0.0001899,2]
[369908981,1751773851340,-181.800458,0.0001899,2]
[369908983,1751773851350,-151.0,0.0001899,2]
[369908985,1751773851360,-151.0,0.0001899,2]
[369908987,1751773851370,-151.0,0.0001899,2]
[369908989,1751773851379,-151.0,0.0001899,2]
[369908991,1751773851390,-151.0,0.0001899,2]
[369908993,1751773851399,-151.0,0.0001899,2]
[369908995,1751773851408,-151.0,0.0001899,2]
[369908997,1751773851418,-151.0,0.0001899,2]
[369908999,1751773851428,-151.0,0.0001899,2]
[369909001,1751773851437,-151.0,0.0001899,2]
[369909003,1751773851447,-828.388983,0.0001899,2]
[369909005,1751773851456,-828.388983,0.0001899,2]
[369909007,1751773851466,-151.0,0.0001899,2]
[369909009,1751773851475,-315.794955,0.0001899,2]
[369909011,1751773851485,-315.794955,0.0001899,2]
[369909013,1751773851494,-230.606704,0.0001899,2]
[369909015,1751773851504,-151.0,0.0001899,2]
[369909017,1751773851513,-230.606704,0.0001899,2]
[369909019,1751773851523,-151.0,0.0001899,2]
[369909021,1751773851533,-151.0,0.0001899,2]
[369909023,1751773851543,-151.0,0.0001899,2]
[369909025,1751773851553,-208.0,0.0001899,2]
[369909027,1751773851564,-151.0,0.0001899,2]
[369909029,1751773851573,-151.0,0.0001899,2]
[369909031,1751773851582,-151.0,0.0001899,2]
[369909033,1751773851592,-151.0,0.0001899,2]
[369909035,1751773851601,-151.0,0.0001899,2]
[369909037,1751773851613,-151.0,0.0001899,2]
[369909039,1751773851622,-151.0,0.0001899,2]
[369909041,1751773851635,-151.0,0.0001899,2]
[369909043,1751773851645,-152.870149,0.0001899,2]
[369909045,1751773851655,-151.0,0.0001899,2]
[369909047,1751773851664,-278.324357,0.0001899,2]
[369909049,1751773851674,-278.324357,0.0001899,2]
[369909051,1751773851684,-151.0,0.0001899,2]
[369909053,1751773851694,-187.415061,0.0001899,2]
[369909055,1751773851704,-364.285573,0.0001899,2]
[369909057,1751773851713,-364.285573,0.0001899,2]
[369909059,1751773851723,-151.0,0.0001899,2]
[369909061,1751773851733,-151.0,0.0001899,2]
[369909063,1751773851743,-442.322635,0.0001899,2]
[369909065,1751773851753,-151.0,0.0001899,2]
[369909067,1751773851763,-442.322635,0.0001899,2]
[369909070,1751773851773,-151.0,0.0001899,2]
[369909072,1751773851783,-151.0,0.0001899,2]
[369909074,1751773851793,-151.0,0.0001899,2]
[369909076,1751773851803,-165.937871,0.0001899,2]
[369909078,1751773851812,-165.937871,0.0001899,2]
[369909080,1751773851822,-224.572426,0.0001899,2]
[369909082,1751773851832,-224.572426,0.0001899,2]
[369909084,1751773851842,-151.0,0.0001899,2]
[369909086,1751773851852,-151.0,0.0001899,2]
[369909088,1751773851861,-151.0,0.0001899,2]
[369909090,1751773851871,-448.246695,0.0001899,2]
[369909092,1751773851880,-151.0,0.0001899,2]
[369909094,1751773851890,-151.0,0.0001899,2]
[369909096,1751773851900,-2993.807852,0.0001899,2]
[369909098,1751773851911,-151.0,0.0001899,2]
[369909100,1751773851921,-156.171476,0.0001899,2]
[369909102,1751773851930,-1090.797006,0.0001899,2]
[369909104,1751773851940,-1090.797006,0.0001899,2]
[369909106,1751773851950,-365.792703,0.0001899,2]
[369909108,1751773851960,-365.792703,0.0001899,2]
[369909110,1751773851970,-237.174568,0.0001899,2]
[369909112,1751773851979,-237.174568,0.0001899,2]
[369909114,1751773851989,-151.0,0.0001899,2]
[369909116,1751773851999,-151.0,0.0001899,2]
[369909118,1751773852009,-524.153661,0.0001899,2]
[369909120,1751773852018,-524.153665,0.0001899,2]
[369909123,1751773852028,-151.0,0.0001899,2]
[369909125,1751773852038,-899.410286,0.0001899,2]
[369909127,1751773852048,-151.0,0.0001899,2]
[369909129,1751773852058,-899.410286,0.0001899,2]
[369909131,1751773852069,-199.678059,0.0001899,2]
[369909133,1751773852078,-199.678059,0.0001899,2]
[369909135,1751773852088,-151.0,0.0001899,2]
[369909137,1751773852097,-151.0,0.0001899,2]
[369909139,1751773852107,-237.93452,0.0001899,2]
[369909141,1751773852116,-237.93452,0.0001899,2]
[369909143,1751773852126,-151.0,0.0001899,2]
[369909145,1751773852135,-151.0,0.0001899,2]
[369909147,1751773852145,-151.0,0.0001899,2]
[369909149,1751773852154,-151.0,0.0001899,2]
[369909151,1751773852164,-151.0,0.0001899,2]
[369909153,1751773852174,-151.0,0.0001899,2]
[369909155,1751773852184,-151.0,0.0001899,2]
[369909157,1751773852197,-151.0,0.0001899,2]
[369909159,1751773852207,-605.107466,0.0001899,2]
[369909161,1751773852217,-605.107466,0.0001899,2]
[369909163,1751773852226,-151.0,0.0001899,2]
[369909165,1751773852236,-151.0,0.0001899,2]
[369909168,1751773852246,-151.0,0.0001899,2]
[369909170,1751773852256,-481.503548,0.0001899,2]
[369909172,1751773852267,-151.0,0.0001899,2]
[369909174,1751773852277,-481.503548,0.0001899,2]
[369909176,1751773852287,-151.0,0.0001899,2]
[369909178,1751773852297,-151.0,0.0001899,2]
[369909180,1751773852307,-151.0,0.0001899,2]
[369909182,1751773852316,-151.0,0.0001899,2]
[369909184,1751773852326,-275.175374,0.0001899,2]
[369909186,1751773852336,-275.175374,0.0001899,2]
[369909188,1751773852345,-321.306437,0.0001899,2]
[369909190,1751773852355,-321.306437,0.0001899,2]
[369909192,1751773852365,-603.761966,0.0001899,2]
[369909194,1751773852375,-603.761966,0.0001899,2]
[369909196,1751773852385,-299.54537,0.0001899,2]
[369909198,1751773852394,-299.54537,0.0001899,2]
[369909200,1751773852405,-166.265388,0.0001899,2]
[369909202,1751773852414,-166.265388,0.0001899,2]
[369909204,1751773852424,-151.0,0.0001899,2]
[369909207,1751773852434,-300.0,0.00018998,2]
[369909209,1751773852444,-644.22324442,0.00018998,2]
[369909210,1751773852453,-117911.0,0.00018999,2]
[369909212,1751773852463,-151.0,0.00018999,2]
[369909214,1751773852473,-151.0,0.00018999,2]
[369909216,1751773852483,-151.0,0.00018999,2]
[369909219,1751773852493,-151.0,0.00018999,2]
[369909221,1751773852503,-151.0,0.00018999,2]
[369909222,1751773852512,-152.107399,0.00018999,2]
[369909224,1751773852522,-151.0,0.00018999,2]
[369909227,1751773852532,-321.306437,0.00018999,2]
[369909229,1751773852542,-321.306437,0.00018999,2]
[369909231,1751773852552,-603.761966,0.00018999,2]
[369909233,1751773852562,-603.761966,0.00018999,2]
[369909235,1751773852572,-1500.0,0.00018999,7]
[369909237,1751773852582,-1500.0,0.00018999,7]
[369909239,1751773852591,-1500.0,0.00018999,7]
[369909241,1751773852601,-1500.0,0.00018999,7]
[369909243,1751773852611,-1500.0,0.00018999,7]
[369909245,1751773852621,-1500.0,0.00018999,7]
[369909247,1751773852630,-1500.0,0.00018999,7]
[369909249,1751773852640,-1500.0,0.00018999,7]
[369909251,1751773852650,-1500.0,0.00018999,7]
[369909253,1751773852660,-1500.0,0.00018999,7]
[369909255,1751773852669,-1500.0,0.00018999,7]
[369909257,1751773852679,-1500.0,0.00018999,7]
[369909259,1751773852689,-1500.0,0.00018999,7]
[369909261,1751773852699,-1500.0,0.00018999,7]
[369909263,1751773852708,-1500.0,0.00018999,7]
[369909265,1751773852718,-1500.0,0.00018999,7]
[369909267,1751773852728,-1500.0,0.00018999,7]
[369909269,1751773852737,-1500.0,0.00018999,7]
[369909289,1751773852913,-1500.0,0.00018999,7]
[369909291,1751773852923,-1526.215663,0.00018999,7]
[369909293,1751773852932,-299.54537,0.00018999,2]
[369909295,1751773852941,-299.54537,0.00018999,2]
[369909297,1751773852951,-166.265388,0.00018999,2]
[369909299,1751773852960,-166.265388,0.00018999,2]
[369909300,1751773852969,-166.265388,0.00018999,2]
[369909302,1751773852978,-166.265388,0.00018999,2]
[369909304,1751773852988,-153.933602,0.00018999,2]
[369909306,1751773852997,-306.42358115,0.00018999,2]
[369909309,1751773853007,-260.76020315,0.00018999,2]
[369909311,1751773853017,-1577.4244114,0.00019,7]
[369909313,1751773853026,-1479.85,0.00019,2]
[369909315,1751773853036,-1479.85,0.00019,2]
[369909316,1751773853046,-1479.85,0.00019,2]
[369909318,1751773853055,-1479.85,0.00019,2]
[369909320,1751773853064,-1266.12,0.00019,2]
[369909322,1751773853073,-1266.12,0.00019,2]
[369909324,1751773853083,-1266.12,0.00019,2]
[369909326,1751773853093,-1266.12,0.00019,2]
[369909328,1751773853102,-844.07,0.00019,2]
[369909330,1751773853111,-844.07,0.00019,2]
[369909332,1751773853121,-844.07,0.00019,2]
[369909334,1751773853130,-844.07,0.00019,2]
[369909336,1751773853140,-142319.21312738,0.00019,2]
[369909338,1751773853149,-151.0,0.00019,2]
[369909340,1751773853158,-151.0,0.00019,2]
[369909342,1751773853168,-151.0,0.00019,2]
[369909343,1751773853176,-151.0,0.00019,2]
[369909344,1751773853186,-151.0,0.00019,2]
[369909345,1751773853196,-151.0,0.00019,2]
[369909346,1751773853213,-154.177443,0.00019,2]
[369909347,1751773853222,-151.0,0.00019,2]
[369909348,1751773853231,-151.0,0.00019,2]
[369909349,1751773853240,-261.344857,0.00019,2]
[369909350,1751773853250,-151.0,0.00019,2]
[369909351,1751773853258,-151.0,0.00019,2]
[369909352,1751773853267,-151.0,0.00019,2]
[369909353,1751773853279,-181.800458,0.00019,2]
[369909354,1751773853289,-181.800458,0.00019,2]
[369909355,1751773853298,-151.0,0.00019,2]
[369909356,1751773853307,-175.477812,0.00019,2]
[369909358,1751773853317,-152.512365,0.00019,2]
[369909359,1751773853326,-151.0,0.00019,2]
[369909361,1751773853335,-151.0,0.00019,2]
[369909363,1751773853345,-243.121998,0.00019,2]
[369909365,1751773853354,-154.85475,0.00019,2]
[369909367,1751773853363,-243.121998,0.00019,2]
[369909369,1751773853372,-151.0,0.00019,2]
[369909371,1751773853381,-151.0,0.00019,2]
[369909373,1751773853390,-151.0,0.00019,2]
[369909375,1751773853399,-151.0,0.00019,2]
[369909377,1751773853409,-297.947156,0.00019,2]
[369909379,1751773853419,-151.0,0.00019,2]
[369909381,1751773853428,-151.0,0.00019,2]
[369909383,1751773853437,-828.388983,0.00019,2]
[369909385,1751773853446,-828.388983,0.00019,2]
[369909387,1751773853455,-151.0,0.00019,2]
[369909389,1751773853464,-151.0,0.00019,2]
[369909390,1751773853473,-315.794955,0.00019,2]
[369909392,1751773853482,-315.794955,0.00019,2]
[369909394,1751773853491,-230.606704,0.00019,2]
[369909396,1751773853501,-151.0,0.00019,2]
[369909398,1751773853511,-230.606704,0.00019,2]
[369909400,1751773853520,-151.0,0.00019,2]
[369909402,1751773853530,-151.0,0.00019,2]
[369909404,1751773853540,-153.738293,0.00019,2]
[369909406,1751773853549,-151.0,0.00019,2]
[369909408,1751773853560,-155.815252,0.00019,2]
[369909410,1751773853571,-151.0,0.00019,2]
[369909412,1751773853581,-151.0,0.00019,2]
[369909414,1751773853590,-151.0,0.00019,2]
[369909416,1751773853599,-151.0,0.00019,2]
[369909418,1751773853611,-151.0,0.00019,2]
[369909420,1751773853620,-157.219075,0.00019,2]
[369909422,1751773853629,-151.0,0.00019,2]
[369909424,1751773853639,-278.324357,0.00019,2]
[369909426,1751773853648,-278.324357,0.00019,2]
[369909428,1751773853658,-151.0,0.00019,2]
[369909430,1751773853667,-364.285573,0.00019,2]
[369909432,1751773853677,-364.285573,0.00019,2]
[369909434,1751773853687,-151.0,0.00019,2]
[369909436,1751773853698,-151.0,0.00019,2]
[369909438,1751773853707,-442.322635,0.00019,2]
[369909440,1751773853717,-269.255356,0.00019,2]
[369909442,1751773853726,-442.322635,0.00019,2]
[369909444,1751773853736,-151.0,0.00019,2]
[369909446,1751773853745,-151.0,0.00019,2]
[369909448,1751773853754,-151.0,0.00019,2]
[369909450,1751773853763,-165.937871,0.00019,2]
[369909452,1751773853772,-165.937871,0.00019,2]
[369909454,1751773853781,-224.572426,0.00019,2]
[369909456,1751773853790,-224.572426,0.00019,2]
[369909458,1751773853800,-151.0,0.00019,2]
[369909460,1751773853809,-223.199549,0.00019,2]
[369909462,1751773853818,-151.0,0.00019,2]
[369909464,1751773853827,-448.246695,0.00019,2]
[369909466,1751773853836,-151.0,0.00019,2]
[369909468,1751773853846,-151.0,0.00019,2]
[369909470,1751773853856,-2993.807852,0.00019,2]
[369909472,1751773853865,-151.0,0.00019,2]
[369909474,1751773853875,-1090.797006,0.00019,2]
[369909476,1751773853884,-1090.797006,0.00019,2]
[369909478,1751773853893,-365.792703,0.00019,2]
[369909480,1751773853903,-365.792703,0.00019,2]
[369909482,1751773853912,-237.174568,0.00019,2]
[369909484,1751773853922,-237.174568,0.00019,2]
[369909486,1751773853931,-151.0,0.00019,2]
[369909488,1751773853941,-151.0,0.00019,2]
[369909490,1751773853950,-151.0,0.00019,2]
[369909492,1751773853959,-899.410286,0.00019,2]
[369909494,1751773853969,-151.0,0.00019,2]
[369909496,1751773853978,-899.410286,0.00019,2]
[369909498,1751773853987,-199.678059,0.00019,2]
[369909500,1751773853997,-199.678059,0.00019,2]
[369909502,1751773854006,-151.0,0.00019,2]
[369909504,1751773854016,-151.0,0.00019,2]
[369909506,1751773854025,-237.93452,0.00019,2]
[369909508,1751773854034,-237.93452,0.00019,2]
[369909510,1751773854043,-151.0,0.00019,2]
[369909512,1751773854052,-151.0,0.00019,2]
[369909514,1751773854062,-281.947649,0.00019,2]
[369909516,1751773854071,-151.0,0.00019,2]
[369909518,1751773854080,-151.0,0.00019,2]
[369909520,1751773854089,-151.0,0.00019,2]
[369909522,1751773854098,-151.0,0.00019,2]
[369909524,1751773854107,-151.0,0.00019,2]
[369909526,1751773854117,-605.107466,0.00019,2]
[369909528,1751773854127,-605.107466,0.00019,2]
[369909530,1751773854135,-151.0,0.00019,2]
[369909532,1751773854144,-185.168478,0.00019,2]
[369909534,1751773854153,-151.0,0.00019,2]
[369909536,1751773854164,-481.503548,0.00019,2]
[369909538,1751773854173,-481.503548,0.00019,2]
[369909540,1751773854182,-151.0,0.00019,2]
[369909542,1751773854191,-151.0,0.00019,2]
[369909544,1751773854203,-151.0,0.00019,2]
[369909546,1751773854211,-151.0,0.00019,2]
[369909548,1751773854221,-275.175374,0.00019,2]
[369909550,1751773854231,-275.175374,0.00019,2]
[369909552,1751773854240,-321.306437,0.00019,2]
[369909555,1751773854252,-321.306437,0.00019,2]
[369909557,1751773854262,-603.761966,0.00019,2]
[369909558,1751773854271,-603.761966,0.00019,2]
[369909560,1751773854281,-299.54537,0.00019,2]
[369909563,1751773854291,-299.54537,0.00019,2]
[369909564,1751773854301,-166.265388,0.00019,2]
[369909566,1751773854310,-166.265392,0.00019,2]
[369909568,1751773854320,-6616.18672927,0.00019017,2]
[369909570,1751773854329,-4161.66709918,0.00019017,2]
[369909572,1751773854339,-200.0,0.00019025,2]
[369909574,1751773854349,-644.22324442,0.00019065,2]
[369909576,1751773854359,-1459.0,0.0001907,2]
[369909578,1751773854368,-2962.12288634,0.00019072,2]
[369909580,1751773854378,-218.71,0.00019073,2]
[369909582,1751773854387,-1700.0,0.00019096,2]
[369909584,1751773854397,-181.0,0.00019137,2]
[369909586,1751773854406,-4160.3376291,0.00019138,2]
[369909588,1751773854416,-30383.9592816,0.00019138,2]
[369909590,1751773854427,-40086.0,0.00019151,2]
[369909592,1751773854437,-151.0,0.00019151,2]
[369909594,1751773854446,-278.324357,0.00019151,2]
[369909596,1751773854457,-278.324357,0.00019151,2]
[369909598,1751773854466,-364.285573,0.00019151,2]
[369909600,1751773854475,-364.285573,0.00019151,2]
[369909602,1751773854486,-257.367248,0.00019151,2]
[369909604,1751773854495,-151.0,0.00019151,2]
[369909606,1751773854505,-442.322635,0.00019151,2]
[369909608,1751773854514,-442.322635,0.00019151,2]
[369909610,1751773854525,-151.0,0.00019151,2]
[369909613,1751773854536,-291.183063,0.00019151,2]
[369909614,1751773854545,-239.713613,0.00019151,2]